[Event "NOR-chT Eliteserien 2018-19"]
[Site "Norway"]
[Date "2018.11.04"]
[Round "3"]
[White "Diesen, Bruce"]
[Black "Lindbol, Aleksander"]
[Result "0-1"]
[ECO "B12"]
[WhiteElo "2159"]
[BlackElo "2141"]
[Annotator "broadcasts"]
[PlyCount "164"]
[EventDate "2018.11.02"]
[EventType "team-tourn"]
[EventCountry "NOR"]
[TimeControl "40/5400+30:1800+30"]

1. e4 {[%emt 0:00:00]} c6 {[%emt 0:00:00]} 2. d4 {[%emt 0:00:00]} d5 {[%emt 0:00:00]} 3. e5 {[%emt 0:00:03]} Bf5 {[%emt 0:00:33]} 4. Nf3 {[%emt 0:00:10]} e6 {[%emt 0:00:13]} 5. Be2 {[%emt 0:00:08]} Nd7 {[%emt 0:00:21]} 6. O-O {[%emt 0:00:15]} h6 {[%emt 0:00:25]} 7. Nbd2 {[%emt 0:00:33]} Ne7 {[%emt 0:00:09]} 8. Nb3 {[%emt 0:00:12]} g5 {[%emt 0:00:20]} 9. Bd2 {[%emt 0:05:08]} a5 {[%emt 0:00:48]} 10. a4 {[%emt 0:10:35]} Bg7 {[%emt 0:00:44]} 11. Bc3 {[%emt 0:09:58]} b6 {[%emt 0:09:13]} 12. Qd2 {[%emt 0:07:06]} Ng6 {[%emt 0:09:26]} 13. g3 {[%emt 0:16:23]} g4 {[%emt 0:19:26]} 14. Ne1 {[%emt 0:00:33]} f6 {[%emt 0:00:42]} 15. f4 {[%emt 0:12:07]} gxf3 {[%emt 0:04:22]} 16. Nxf3 {[%emt 0:04:34]} O-O {[%emt 0:04:50]} 17. Bd3 {[%emt 0:04:47]} fxe5 {[%emt 0:10:01]} 18. Nxe5 {[%emt 0:04:54]} Ngxe5 {[%emt 0:01:07]} 19. dxe5 {[%emt 0:00:37]} Bxd3 {[%emt 0:02:20]} 20. cxd3 {[%emt 0:01:17]} Qe8 {[%emt 0:05:28]} 21. Rxf8+ {[%emt 0:03:45]} Nxf8 {[%emt 0:00:49]} 22. Nc1 {[%emt 0:04:38]} Nh7 {[%emt 0:06:28]} 23. h4 {[%emt 0:08:13]} Qh5 {[%emt 0:06:48]} 24. Qe2 {[%emt 0:01:08]} Qg6 {[%emt 0:00:09]} 25. Kg2 {[%emt 0:00:24]} c5 {[%emt 0:01:35]} 26. d4 {[%emt 0:01:43]} cxd4 {[%emt 0:01:09]} 27. Bxd4 {[%emt 0:00:02]} Rc8 {[%emt 0:00:09]} 28. Nd3 {[%emt 0:00:18]} Rc4 {[%emt 0:03:48]} 29. Be3 {[%emt 0:02:16]} Qe4+ {[%emt 0:02:25]} 30. Kf2 {[%emt 0:00:03]} Bxe5 {[%emt 0:00:23]} 31. Rf1 {[%emt 0:01:15]} Nf6 {[%emt 0:05:06]} 32. Bf4 {[%emt 0:00:19]} Bd4+ {[%emt 0:03:02]} 33. Ke1 {[%emt 0:00:16]} Rxa4 {[%emt 0:00:11]} 34. Bxh6 {[%emt 0:00:27]} Ra1+ {[%emt 0:02:09]} 35. Kd2 {[%emt 0:00:24]} Rxf1 {[%emt 0:02:14]} 36. Qxf1 {[%emt 0:00:30]} Qg6 {[%emt 0:00:30]} 37. Bf4 {[%emt 0:00:30]} Ne4+ {[%emt 0:00:30]} 38. Kc1 {[%emt 0:00:30]} Qf5 {[%emt 0:00:30]} 39. Qd1 {[%emt 0:00:30]} e5 {[%emt 0:00:30]} 40. g4 {[%emt 0:00:30]} Qf6 {[%emt 0:00:30]} 41. Bh2 {[%emt 0:30:30]} Qxh4 {[%emt 0:30:30]} 42. Bg1 {[%emt 0:00:30]} Qh6+ {[%emt 0:00:30]} 43. Kb1 {[%emt 0:00:30]} Qh1 {[%emt 0:00:30]} 44. Qa4 {[%emt 0:00:30]} Qxg1+ {[%emt 0:00:30]} 45. Ka2 {[%emt 0:00:30]} Nf6 {[%emt 0:00:30]} 46. Qc6 {[%emt 0:00:30]} Qf1 {[%emt 0:00:30]} 47. Qe6+ {[%emt 0:00:30]} Kf8 {[%emt 0:00:30]} 48. g5 {[%emt 0:00:30]} Ne8 {[%emt 0:00:30]} 49. Nxe5 {[%emt 0:00:30]} Bxe5 {[%emt 0:00:30]} 50. Qxe5 {[%emt 0:00:30]} Qc4+ {[%emt 0:00:30]} 51. b3 {[%emt 0:00:30]} Qc2+ {[%emt 0:00:30]} 52. Ka3 {[%emt 0:00:30]} Qc5+ {[%emt 0:00:30]} 53. Ka2 {[%emt 0:00:30]} d4 {[%emt 0:00:30]} 54. Qh8+ {[%emt 0:00:30]} Ke7 {[%emt 0:00:30]} 55. Qh7+ {[%emt 0:00:30]} Kd8 {[%emt 0:00:30]} 56. g6 {[%emt 0:00:30]} Qf5 {[%emt 0:00:30]} 57. Qh4+ {[%emt 0:00:30]} Qf6 {[%emt 0:00:30]} 58. Qe4 {[%emt 0:00:30]} Ng7 {[%emt 0:00:30]} 59. Qa8+ {[%emt 0:00:30]} Kc7 {[%emt 0:00:30]} 60. Qa7+ {[%emt 0:00:30]} Kc6 {[%emt 0:00:30]} 61. Qa8+ {[%emt 0:00:30]} Kd6 {[%emt 0:00:30]} 62. Qe4 {[%emt 0:00:30]} Ne6 {[%emt 0:00:30]} 63. Qb7 {[%emt 0:00:30]} Kc5 {[%emt 0:00:30]} 64. Qc8+ {[%emt 0:00:30]} Kd5 {[%emt 0:00:30]} 65. Qb7+ {[%emt 0:00:30]} Ke5 {[%emt 0:00:30]} 66. Qxb6 {[%emt 0:00:30]} Qxg6 {[%emt 0:00:30]} 67. Qxa5+ {[%emt 0:00:30]} Kf6 {[%emt 0:00:30]} 68. Qd2 {[%emt 0:00:30]} Qe4 {[%emt 0:00:30]} 69. b4 {[%emt 0:00:30]} d3 {[%emt 0:00:30]} 70. Qc3+ {[%emt 0:00:30]} Qd4 {[%emt 0:00:30]} 71. Qd2 {[%emt 0:00:30]} Nf4 {[%emt 0:00:30]} 72. Kb3 {[%emt 0:00:30]} Kf5 {[%emt 0:00:30]} 73. b5 {[%emt 0:00:30]} Nd5 {[%emt 0:00:30]} 74. b6 {[%emt 0:00:30]} Qb4+ {[%emt 0:00:30]} 75. Qxb4 {[%emt 0:00:30]} Nxb4 {[%emt 0:00:30]} 76. b7 {[%emt 0:00:30]} Nc6 {[%emt 0:00:30]} 77. Kc3 {[%emt 0:00:30]} Ke4 {[%emt 0:00:30]} 78. Kd2 {[%emt 0:00:30]} Kd4 {[%emt 0:00:30]} 79. Kd1 {[%emt 0:00:30]} Ke3 {[%emt 0:00:30]} 80. Ke1 {[%emt 0:00:30]} d2+ {[%emt 0:00:30]} 81. Kd1 {[%emt 0:00:30]} Nb8 {[%emt 0:00:30]} 82. Kc2 {[%emt 0:00:30]} Ke2 {[%emt 0:00:30]} 0-1

[Event "NOR-chT Eliteserien 2018-19"]
[Site "Norway"]
[Date "2018.11.04"]
[Round "3"]
[White "Lahlum, Hans Olav"]
[Black "Gullaksen, Eirik"]
[Result "1/2-1/2"]
[ECO "A40"]
[WhiteElo "2115"]
[BlackElo "2356"]
[Annotator "broadcasts RC"]
[PlyCount "45"]
[EventDate "2018.11.02"]
[EventType "team-tourn"]
[EventCountry "NOR"]
[TimeControl "40/5400+30:1800+30"]

1. d4 {[%emt 0:00:21]} g6 {[%emt 0:00:00]} 2. e4 {[%emt 0:00:36]} Bg7 {[%emt 0:00:02]} 3. c4 {[%emt 0:03:14]} Nc6 {[%emt 0:00:44]} 4. Ne2 {[%emt 0:00:45]} e5 {[%emt 0:00:50]} 5. d5 {[%emt 0:02:13]} Nd4 {[%emt 0:01:15]} 6. Nxd4 {[%emt 0:01:06]} exd4 {[%emt 0:00:11]} 7. Bd3 {[%emt 0:01:03]} c5 {[%emt 0:00:35]} 8. O-O {[%emt 0:03:04]} d6 {[%emt 0:00:45]} 9. f4 {[%emt 0:04:16]} Ne7 {[%emt 0:08:16]} 10. Qe2 {[%emt 0:03:05]} O-O {[%emt 0:02:37]} 11. Nd2 {[%emt 0:02:25]} Re8 {[%emt 0:02:02]} 12. Qf2 {[%emt 0:02:15]} f5 {[%emt 0:03:18]} 13. Re1 {[%emt 0:05:48]} fxe4 {[%emt 0:01:59]} 14. Nxe4 {[%emt 0:02:12]} Bf5 {[%emt 0:10:14]} 15. Bd2 {[%emt 0:05:00]} Qd7 {[%emt 0:02:19]} 16. Kh1 {[%emt 0:10:11]} Bxe4 {[%emt 0:17:21]} 17. Rxe4 {[%emt 0:04:14]} Nf5 {[%emt 0:03:10]} 18. Rae1 {[%emt 0:03:44]} Rxe4 {[%emt 0:01:56]} 19. Bxe4 {[%emt 0:01:08]} Re8 {[%emt 0:01:02]} 20. Bd3 {[%emt 0:08:02]} Kf8 {[%emt 0:03:41]} 21. b3 {[%emt 0:01:19]} Rxe1+ {[%emt 0:14:08]} 22. Qxe1 {[%emt 0:00:30]} h5 {[%emt 0:06:20]} 23. Qe2 {[%emt 0:03:22]} 1/2-1/2

[Event "NOR-chT Eliteserien 2018-19"]
[Site "Norway"]
[Date "2018.11.04"]
[Round "3"]
[White "Machlik, Edit"]
[Black "Getz, Nicolai"]
[Result "1/2-1/2"]
[ECO "D92"]
[WhiteElo "2110"]
[BlackElo "2392"]
[Annotator "broadcasts RC"]
[PlyCount "41"]
[EventDate "2018.11.02"]
[EventType "team-tourn"]
[EventCountry "NOR"]
[TimeControl "40/5400+30:1800+30"]

1. d4 {[%emt 0:00:00]} Nf6 {[%emt 0:00:00]} 2. c4 {[%emt 0:00:00]} g6 {[%emt 0:00:00]} 3. Nc3 {[%emt 0:00:00]} d5 {[%emt 0:00:00]} 4. Bf4 {[%emt 0:01:35]} Bg7 {[%emt 0:02:20]} 5. Nf3 {[%emt 0:03:58]} Na6 {[%emt 0:13:14]} 6. e3 {[%emt 0:09:16]} c5 {[%emt 0:04:27]} 7. dxc5 {[%emt 0:02:19]} Qa5 {[%emt 0:00:44]} 8. Rc1 {[%emt 0:20:08]} O-O {[%emt 0:16:00]} 9. cxd5 {[%emt 0:12:57]} Nxc5 {[%emt 0:00:17]} 10. Qd2 {[%emt 0:05:57]} b6 {[%emt 0:14:12]} 11. Bc4 {[%emt 0:13:54]} Ba6 {[%emt 0:05:19]} 12. Bxa6 {[%emt 0:02:27]} Qxa6 {[%emt 0:00:23]} 13. Qe2 {[%emt 0:01:12]} Qb7 {[%emt 0:09:44]} 14. d6 {[%emt 0:03:52]} Rad8 {[%emt 0:03:54]} 15. O-O {[%emt 0:01:35]} exd6 {[%emt 0:02:52]} 16. Rfd1 {[%emt 0:01:56]} d5 {[%emt 0:00:46]} 17. Nb5 {[%emt 0:01:47]} Qa6 {[%emt 0:01:26]} 18. Nc3 {[%emt 0:03:19]} Qb7 {[%emt 0:00:18]} 19. Nb5 {[%emt 0:00:14]} Qa6 {[%emt 0:03:20]} 20. Nc3 {[%emt 0:02:05]} Qb7 {[%emt 0:00:46]} 21. Nb5 1/2-1/2